Cogmind - Beta 11.1 @@@ ROGUE MODE // 2022.10.06 @ 02:05:27 Player: DuckBoy Result: Destroyed by H-66 Slayer with Gauss Rifle Performance ------------- Evolutions (4) 2000 Regions Visited (13) 2600 Robots Destroyed (183) 915 Value Destroyed (5149) 5149 Prototype IDs (36) 720 Alien Tech Used (0) 0 Bonus (744) 744 TOTAL SCORE: 12128 Bonus ------- High Alert Combat Kills 468 Follower Combat Kills 1055 Aligned with FarCom 300 Friendly Fire -1079 Cogmind --------- Core Integrity 0/850 Matter 216/300 Energy 210/210 System Corruption 21% Temperature Cool (0) Movement Walking (190) Ox1 Location -6/Cetus Parts ------- > --- POWER (2) -------- Light Angular Momentum Engine Light Fission Core > --- PROPULSION (6) --- Carbon-fiber Leg Carbon-fiber Leg Carbon-fiber Leg Nuclear Pulse Thruster Cooled Cesium-ion Thruster Biomechanical Wings > --- UTILITY (5) ------ Advanced Heat Sink High-capacity Storage Unit Hardened Light Armor Plating Hacking Suite Improved System Shield > --- WEAPON (2) ------- Heavy Machine Gun Heavy Machine Gun > --- INVENTORY (20) --- Fission Core Cold Fusion Reactor Nuclear Pulse Thruster Advanced Heat Sink Improved Cooling System Hardened Light Armor Plating Improved Hacking Suite Arc Projector Heavy Plasma Cannon Ion Burst Cannon Remote Datajack Heavy Flail Peak State ------------ > --- POWER ------------ Heavy Deuterium Engine Antimatter Reactor > --- PROPULSION ------- Medium Treads Medium Treads Heavy Treads Heavy Treads > --- UTILITY ---------- Improved Cooling System High-capacity Storage Unit Layered Medium Armor Plating Hacking Suite Hacking Suite > --- WEAPON ----------- Heavy Machine Gun Heavy Machine Gun > --- INVENTORY -------- Fission Core Cold Fusion Reactor Improved Medium Treads Nuclear Pulse Thruster Nuclear Pulse Thruster Cooled Cesium-ion Thruster Biomechanical Wings Improved Heat Sink Advanced Heat Sink Layered Medium Armor Plating Improved Hacking Suite Improved System Shield Arc Projector Ion Burst Cannon Proton Missile Launcher Heavy Rocket Launcher Heavy Rocket Launcher Remote Datajack Heavy Flail [Rating: 79] Favorites ----------- Power Backup Power III Engine Backup Power III Power Core Micro Nuclear Core Reactor Antimatter Reactor Propulsion Xenon Bombardment Thruster Treads Heavy Treads Leg Aluminum Leg Flight Unit Xenon Bombardment Thruster Utility Hacking Suite Device Improved Cooling System Storage Medium Storage Unit Processor Machine Analyzer Hackware Hacking Suite Protection Hardened Light Armor Plating Weapon Arc Projector Energy Gun Arc Projector Energy Cannon Ion Burst Cannon Ballistic Gun Assault Rifle Launcher Heavy Rocket Launcher Special Weapon Remote Datajack Impact Weapon Heavy Flail Slashing Weapon Chainsword Special Melee Weapon Datajack Build | -11 -10 -10 -10 -9 -8 -7 -7 -7 -6 -6 -6 -6 -6 ------- Run | Scr Mat Min Exi Min Mat Fac Was Fac Fac Was Fac Ext Cet Slots Evolved 8 | . . . . . 4 2 . . 2 . . . . Power 1 | . . . . . . 1 . . . . . . . Propulsion 4 | . . . . . 2 1 . . 1 . . . . Utility 3 | . . . . . 2 . . . 1 . . . . Weapon . | . . . . . . . . . . . . . . Parts Attached 239 | 6 26 . 1 1 19 33 3 25 21 6 57 20 21 Power 19 | 1 2 . . . 2 3 1 1 . . 7 1 1 Engine 12 | 1 2 . . . 2 3 . 1 . . 2 . 1 Core 5 | . . . . . . . 1 . . . 3 1 . Reactor 2 | . . . . . . . . . . . 2 . . Propulsion 66 | . 5 . . 1 3 6 . 6 7 3 25 2 8 Treads 14 | . . . . . . . . . . 1 12 1 . Leg 7 | . 2 . . . . . . . . . . 1 4 Wheel . | . . . . . . . . . . . . . . Hover . | . . . . . . . . . . . . . . Flight 45 | . 3 . . 1 3 6 . 6 7 2 13 . 4 Utility 48 | 2 7 . 1 . 4 6 . 4 4 2 8 2 8 Device 14 | 1 1 . . . . 1 . 1 1 1 4 1 3 Storage 13 | 1 4 . . . 1 . . 1 1 1 3 . 1 Processor 7 | . 1 . 1 . 2 3 . . . . . . . Hackware 7 | . . . . . . 2 . 2 2 . . . 1 Protection 7 | . 1 . . . 1 . . . . . 1 1 3 Artifact . | . . . . . . . . . . . . . . Weapon 106 | 3 12 . . . 10 18 2 14 10 1 17 15 4 Energy Gun 19 | . . . . . 2 5 1 3 3 . 2 3 . Energy Cannon 16 | . . . . . . . . 2 2 . 9 2 1 Ballistic Gun 20 | 2 10 . . . 2 . 1 1 . . . 2 2 Ballistic Cannon . | . . . . . . . . . . . . . . Launcher 19 | . . . . . 3 3 . 2 1 . 1 8 1 Special Weapon 4 | 1 . . . . . . . . 2 1 . . . Impact Weapon 22 | . 2 . . . 3 6 . 4 2 . 5 . . Slashing Weapon 1 | . . . . . . 1 . . . . . . . Piercing Weapon . | . . . . . . . . . . . . . . Special Melee Weapon 5 | . . . . . . 3 . 2 . . . . . Unidentified Prototypes 10 | . . . . . 1 1 1 2 1 . 4 . . Corrupted Parts 4 | . . . . . . . . . 1 . 2 1 . System Corruption 18 | . . . . . . . . . 1 . 7 10 . Parts Lost 47 | . . . . 2 1 8 . 6 1 . 13 6 10 Power 11 | . . . . 1 . 1 . 2 . . 5 1 1 Propulsion 18 | . . . . 1 . 3 . 2 . . 6 3 3 Utility 9 | . . . . . 1 2 . 1 . . 2 . 3 Weapon 9 | . . . . . . 2 . 1 1 . . 2 3 Highest Loss Streak 9 | . . . . 2 1 4 . 3 1 . 6 2 9 To Critical Strikes 3 | . . . . . . . . . . . . . 3 Average Slot Usage (%) 85 | . 77 71 71 68 69 85 77 95 98 99 76 82 80 Engine 6 | . 12 14 14 11 4 13 3 5 6 6 3 6 2 Core 3 | . . . . . . . 4 7 6 6 3 . 6 Reactor 1 | . . . . . . . . . . . 3 4 . Treads 6 | . . . . . . . . . . . 16 22 1 Flight 23 | . 13 28 28 28 26 34 30 37 39 39 9 . 20 Device 3 | . 8 . . . . . . . . 5 5 6 6 Storage 5 | . 13 14 14 14 9 7 7 7 6 . 3 6 2 Processor 3 | . 2 14 14 14 20 7 15 4 . . . . . Hackware 14 | . . . . . . 5 7 17 25 26 16 13 17 Protection 1 | . . . . . 1 3 . . . . 1 6 3 Energy Gun 3 | . . . . . 1 5 3 2 1 6 4 2 . Energy Cannon 2 | . . . . . . . . . 2 . 5 3 . Ballistic Gun 1 | . 11 . . . . . . 1 . . . 2 8 Special Weapon 1 | . 6 . . . . . . . 2 5 . . . Impact Weapon 1 | . . . . . 4 3 3 3 5 . . . . Naked Turns . | . . . . . . . . . . . . . . Heaviest Build 89 | 15 32 8 8 8 17 23 20 26 35 35 86 89 82 Greatest Support 210 | 3 20 8 8 8 17 24 20 29 36 70 210 196 100 Greatest Overweight (x) 8 | 4 4 . . . . 1 . . . . 8 1 2 Average Overweight (x) . | 3 . . . . . . . . . . . . . Largest Inventory Capacity 20 | 8 15 8 8 8 10 10 10 10 15 15 20 20 20 Average Capacity 10 | 7 9 8 8 8 8 10 10 9 10 5 12 20 11 Most Carried 20 | 6 8 8 8 8 10 10 9 10 10 15 20 20 20 Average Carried 9 | 4 7 8 8 7 7 9 8 9 8 4 8 19 8 Final Capacity 20 | 8 8 8 8 8 10 10 10 10 15 15 20 20 20 Final Carried 20 | 6 8 8 8 7 10 9 9 10 10 15 19 20 12 Class Distribution -------------------- 40% | Hacker-Sprinter 27% | Scavenger-Mutant 9% | Mutant 7% | Sprinter 7% | Scavenger-Scout 5% | Hacker-Mutant Dominant Class ---------------- Mutant | -10/Materials Mutant | -10/Mines Mutant | -10/Exiles Mutant | -9/Mines Scavenger-Scout | -8/Materials Scavenger-Scout | -7/Factory Sprinter | -7/Waste Hacker-Sprinter | -7/Factory Hacker-Sprinter | -6/Factory Hacker-Sprinter | -6/Waste Scavenger-Mutant | -6/Factory Scavenger-Mutant | -6/Extension Hacker-Sprinter | -6/Cetus Resources | -11 -10 -10 -10 -9 -8 -7 -7 -7 -6 -6 -6 -6 -6 ----------- Run | Scr Mat Min Exi Min Mat Fac Was Fac Fac Was Fac Ext Cet Matter Collected 4150 | 320 323 . . 74 219 497 . 517 284 120 689 615 492 Remotely . | . . . . . . . . . . . . . . Salvage Created 6868 | 204 348 . . . 174 712 . 639 341 . 2528 1434 488 Parts 339 | 17 22 . . . 16 37 . 36 24 . 92 70 25 Haulers Intercepted 9 | . 2 . . . 1 1 . 1 1 . 3 . . Recyclers Shooed 5 | . 1 . . . . 1 . . . . 2 1 . Parts Field Recycled . | . . . . . . . . . . . . . . Retrieved Matter . | . . . . . . . . . . . . . . Parts Self-Destructed . | . . . . . . . . . . . . . . Prevented . | . . . . . . . . . . . . . . Kills | -11 -10 -10 -10 -9 -8 -7 -7 -7 -6 -6 -6 -6 -6 ------- Run | Scr Mat Min Exi Min Mat Fac Was Fac Fac Was Fac Ext Cet Combat Hostiles Destroyed 101 | . 4 . . . 6 7 . 16 4 . 23 29 12 Melee 1 | . . . . . . . . . . . 1 . . Guns 23 | . 4 . . . 1 . . 4 1 . 2 4 7 Cannons 32 | . . . . . . . . 1 2 . 19 8 2 AOE 43 | . . . . . 5 7 . 10 1 . . 17 3 Classes Destroyed 19 | 2 3 . . . 3 1 . 3 1 . 3 2 1 Worker 25 | . . . . . 1 6 . 1 4 . 11 2 . Builder 9 | . . . . . 2 2 . . . . 1 4 . Tunneler 9 | 6 . . . . . . . 1 . . 1 1 . Hauler 9 | . 2 . . . 1 1 . 1 1 . 3 . . Recycler 15 | 1 2 . . . . 4 . 1 . . 6 1 . Mechanic 1 | . . . . . . . . . . . 1 . . Operator 4 | . 1 . . . 1 1 . . . . 1 . . Watcher 7 | . . . . . . 1 . 1 1 . 3 . 1 Swarmer 38 | . 4 . . . 3 7 . 6 1 . 5 8 4 Cutter 2 | . . . . . . . . . 2 . . . . Saboteur 1 | . . . . . . . . . . . . 1 . Grunt 36 | . . . . . 3 . . 6 . . 10 12 5 Duelist 3 | . . . . . . . . . . . . 2 1 Protector 2 | . . . . . . . . 1 . . . 1 . Sentry 6 | . . . . . . . . . . . 3 3 . Specialist 3 | . . . . . . . . . . . 3 . . Hunter 4 | . . . . . . . . 2 . . . 2 . Programmer 4 | . . . . . . . . 1 1 . 2 . . Cetus Guard 2 | . . . . . . . . . . . . . 2 Thug 2 | . . . . . . . . . . . . 1 1 Savage 1 | . . . . . . . . . . . . . 1 Best Kill Streak 8 | 3 5 . . . 5 8 . 4 2 . 7 6 6 Combat Bots Only 5 | . 3 . . . 3 4 . 3 2 . 4 5 5 Max Kills in Single Turn 5 | 1 2 . . . 5 3 . 2 1 . 2 3 2 Gunslinging 1 | . 1 . . . . . . . . . . 1 . Exploded 3 | . . . . . 3 2 . 2 1 . . 3 1 Melee 1 | . . . . . . . . . . . 1 . . Uniques/NPCs Destroyed . | . . . . . . . . . . . . . . Combat | -11 -10 -10 -10 -9 -8 -7 -7 -7 -6 -6 -6 -6 -6 -------- Run | Scr Mat Min Exi Min Mat Fac Was Fac Fac Was Fac Ext Cet Damage Taken 6942 | . 81 . . 281 150 491 . 369 114 . 2600 1433 1423 Core 1144 | . 15 . . 182 21 14 . 56 14 . 458 125 259 Absorbed by Shields 219 | . . . . . . . . . 21 . 53 145 . Reduced by Siege Mode 266 | . . . . . . . . . . . 252 14 . Redirected to Shielding 70 | . . . . . . 70 . . . . . . . Regen/Repaired (Parts) 172 | . . . . . . . . 40 . . 132 . . Core Remaining (%) 76 | 100 . . . 21 96 . . 90 . . . . . Volleys Fired 1073 | 32 31 . . . 23 80 15 76 45 563 102 67 39 Largest 2 | 2 2 . . . 1 2 1 2 2 1 2 2 2 Hottest 180 | 100 100 . . . 55 91 55 95 180 55 180 155 139 Shots Fired 1230 | 39 53 . . . 23 83 15 79 48 564 158 110 58 Gun 947 | 20 44 . . . 18 77 15 64 21 558 31 61 38 Cannon 175 | . . . . . . . . 2 18 . 125 26 4 Launcher 66 | . . . . . 5 6 . 13 1 . 2 23 16 Special 42 | 19 9 . . . . . . . 8 6 . . . Kinetic 147 | 20 44 . . . 10 . . 7 . . . 28 38 Thermal 204 | 19 9 . . . . . . 3 18 . 125 26 4 Explosive 57 | . . . . . 5 6 . 13 1 . . 16 16 Electromagnetic 808 | . . . . . 8 77 15 56 21 558 33 40 . Robot Hit Streak 19 | 6 10 . . . 7 7 5 6 7 19 12 9 12 Robot Miss Streak 7 | 2 3 . . . 3 4 4 7 5 4 6 4 3 Penetration Max . | . . . . . . . . . . . . . . Secondary Targets 3 | . 1 . . . . . . . . . . 2 . Max Gunslinging Chain 1 | . 1 . . . . . . . . . . 1 . Shots Hit Robots 877 | 13 26 . . . 17 65 12 49 32 435 120 73 35 Core Hits 373 | 8 13 . . . 14 40 1 40 12 39 69 83 54 Critical Kills 3 | . 1 . . . . . . . 1 . 1 . . Critical Parts Destroyed 3 | 1 . . . . . . . . . . 1 . 1 Critical Strikes 6 | 1 1 . . . . . . . 1 . 2 . 1 Meltdown 1 | . . . . . . . . . . . 1 . . Destroy 3 | 1 1 . . . . . . . . . . . 1 Smash 2 | . . . . . . . . . 1 . 1 . . Melee Attacks 189 | . 4 . . . 26 60 . 46 34 . 19 . . Impact 161 | . 4 . . . 26 43 . 35 34 . 19 . . Slashing 2 | . . . . . . 2 . . . . . . . Piercing . | . . . . . . . . . . . . . . Sneak Attacks 30 | . . . . . 1 11 . 8 4 . 6 . . Combat Hostiles 1 | . . . . . . 1 . . . . . . . Follow-up Attacks . | . . . . . . . . . . . . . . Damage Inflicted 18510 | 152 348 . . . 1114 1981 11 2157 1104 457 5112 4115 1959 Guns 3694 | 152 348 . . . 150 681 11 430 165 287 277 666 527 Cannons 5300 | . . . . . . . . 149 279 . 3749 954 169 Explosions 7616 | . . . . . 825 1140 . 1515 46 170 197 2460 1263 Melee 1736 | . . . . . 139 160 . 63 614 . 760 . . Ramming 164 | . . . . . . . . . . . 129 35 . Kinetic 1600 | 152 348 . . . 62 . . 80 . . . 431 527 Thermal 6963 | . . . . . 403 422 . 409 279 170 3749 1362 169 Explosive 5370 | . . . . . 422 718 . 1255 46 . . 1666 1263 Electromagnetic 2677 | . . . . . 88 681 11 350 165 287 474 621 . Impact 1736 | . . . . . 139 160 . 63 614 . 760 . . Slashing . | . . . . . . . . . . . . . . Piercing . | . . . . . . . . . . . . . . Highest Corruption 21 | . . . . . . 11 6 7 2 2 11 21 21 Average Corruption 7 | . . . . . . 8 6 6 1 2 6 12 21 Corruption Purged 5 | . . . . . . 5 . . . . . . . Corruption Blocked 10 | . . . . . . . 9 1 . . . . . Effects 272 | . . . . . . 43 2 48 6 26 68 58 21 Message Errors 65 | . . . . . . 6 1 11 2 8 16 14 7 Matter Fused 61 | . . . . . . 9 . 9 1 5 23 11 3 Heat Flow Errors 34 | . . . . . . 8 . 8 . 3 5 9 1 Energy Discharges 39 | . . . . . . 6 1 7 2 2 10 9 2 Parts Rejected 2 | . . . . . . 1 . . . . 1 . . Data Loss (minor) 30 | . . . . . . 4 . 7 . 3 7 6 3 Data Loss (major) 11 | . . . . . . . . 2 . 3 3 3 . Misfires 9 | . . . . . . 2 . 2 . 1 2 1 1 Alerts 10 | . . . . . . 4 . 1 . 1 1 3 . Misdirections 3 | . . . . . . 3 . . . . . . . Weapon Failures 8 | . . . . . . . . 1 1 . . 2 4 Overload Shots 34 | . . . . . . . . 2 6 . 26 . . Effects 1 | . . . . . . . . . . . 1 . . Energy Bleed 1 | . . . . . . . . . . . 1 . . Overflow Damage 1255 | . . . . . 99 189 . 135 247 . 484 74 27 Projectiles 307 | . . . . . . . . 85 26 . 179 17 . Explosions 330 | . . . . . 76 133 . 37 . . . 57 27 Melee 618 | . . . . . 23 56 . 13 221 . 305 . . Knockbacks 5 | . . . . . . 1 . 1 . . 3 . . Impact 5 | . . . . . . 1 . 1 . . 3 . . Kinetic . | . . . . . . . . . . . . . . Secondary . | . . . . . . . . . . . . . . Self-Inflicted Damage 279 | . . . . . 72 18 . . 45 . . 120 24 Shots 7 | . . . . . 1 1 . . 1 . . 3 1 Rammed 12 | . . . . . . . . . . . 9 3 . Targets Rammed 18 | . . . . . . . . . . . 15 3 . Kicked . | . . . . . . . . . . . . . . Crushed 6 | . . . . . . . . . . . 6 . . Highest Temperature 323 | 280 60 . . . 36 294 100 304 323 215 312 219 294 Average Temperature 82 | 115 23 . . . 14 58 61 83 111 37 74 49 103 Received Heat Transfer 1125 | . . . . . . 42 . 54 12 . 604 296 117 Effects 7 | 2 . . . . . 1 . 1 3 . . . . Energy Bleed 2 | . . . . . . 1 . . 1 . . . . Interference 5 | 2 . . . . . . . 1 2 . . . . Siege Activations 12 | . . . . . . . . . . . 6 5 1 Total Turns 160 | . . . . . . . . . . . 112 45 3 Longest Duration 36 | . . . . . . . . . . . 36 24 3 Robots Corrupted . | . . . . . . . . . . . . . . Combat Hostiles . | . . . . . . . . . . . . . . Parts Fried 16 | . . . . . . 2 . 3 3 . 8 . . Impact Corruptions 18 | . . . . . 1 2 . 1 3 . 11 . . Robots Melted 1 | . . . . . . . . . . . 1 . . Combat Hostiles 1 | . . . . . . . . . . . 1 . . Parts Melted 13 | . . . . . . . . 2 . . 9 2 . Heat Transferred 7490 | . . . . . 200 350 . 425 309 100 4330 1576 200 Parts Sabotaged . | . . . . . . . . . . . . . . Parts Stolen . | . . . . . . . . . . . . . . Parts Stripped . | . . . . . . . . . . . . . . Power Chain Reactions 13 | . . . . . . 2 . 3 . 2 . 6 . Missiles Intercepted . | . . . . . . . . . . . . . . Alert | -11 -10 -10 -10 -9 -8 -7 -7 -7 -6 -6 -6 -6 -6 ------- Run | Scr Mat Min Exi Min Mat Fac Was Fac Fac Was Fac Ext Cet Peak Influence 832 | 35 306 118 . 12 325 558 161 560 482 15 434 832 609 Initial 351 | . . 118 . . . 15 131 112 226 9 . 203 351 Average 223 | 21 53 118 . 3 161 329 155 215 276 1 265 386 474 Maximum Alert Level 3 | . 1 . . . 1 2 . 2 2 . 2 3 2 Low Security (%) 45 | 100 94 100 . 100 70 17 100 50 15 100 20 20 . Level 1 39 | . 5 . . . 29 45 . 36 68 . 78 38 19 Level 2 13 | . . . . . . 37 . 12 15 . 1 29 80 Level 3 1 | . . . . . . . . . . . . 12 . Level 4 . | . . . . . . . . . . . . . . Level 5 . | . . . . . . . . . . . . . . High Security . | . . . . . . . . . . . . . . Max Security . | . . . . . . . . . . . . . . Squads Dispatched 67 | . 3 . . . . 15 . 16 7 . 18 6 2 Investigation 37 | . 2 . . . . 8 . 12 2 . 9 2 2 Extermination 7 | . . . . . . 1 . 2 2 . 2 . . Reinforcement 19 | . 1 . . . . 5 . 1 3 . 7 2 . Assault 3 | . . . . . . . . 1 . . . 2 . Garrison 1 | . . . . . . 1 . . . . . . . Intercept . | . . . . . . . . . . . . . . Searches Triggered 1 | . . . . . . 1 . . . . . . . Construction Impeded 4 | . . . . . . 2 . . . . . 2 . Haulers Reinforced 3 | . . . . . . . . 1 . . 2 . . Active Scanning Responses . | . . . . . . . . . . . . . . Cargo Convoy Interrupts 1 | . . . . . . . . . . . 1 . . Stealth | -11 -10 -10 -10 -9 -8 -7 -7 -7 -6 -6 -6 -6 -6 --------- Run | Scr Mat Min Exi Min Mat Fac Was Fac Fac Was Fac Ext Cet Distress Signals 16 | . 3 . . . 1 2 . 2 3 . 2 2 1 Communications Jammed . | . . . . . . . . . . . . . . Distress Signals . | . . . . . . . . . . . . . . Times Spotted 271 | . 13 . . 3 10 48 6 36 22 10 56 52 15 Peak Tracking Total 8 | . 8 . . 1 3 6 6 5 4 6 7 6 5 Tactical Retreats 52 | . 3 . . 2 1 14 1 10 6 3 10 2 . Traps | -11 -10 -10 -10 -9 -8 -7 -7 -7 -6 -6 -6 -6 -6 ------- Run | Scr Mat Min Exi Min Mat Fac Was Fac Fac Was Fac Ext Cet Traps Triggered 11 | . 1 . . . . 2 . 2 1 . 4 1 . Indirectly . | . . . . . . . . . . . . . . Trap Hack Attempts 27 | . . . . . . . . 27 . . . . . Triggered 2 | . . . . . . . . 2 . . . . . Disarmed . | . . . . . . . . . . . . . . Reprogrammed 9 | . . . . . . . . 9 . . . . . Reused 3 | . . . . . . . . 3 . . . . . Traps Extracted . | . . . . . . . . . . . . . . Installed . | . . . . . . . . . . . . . . Triggered 6 | . . . . . . . . 4 . . 2 . . Machines | -11 -10 -10 -10 -9 -8 -7 -7 -7 -6 -6 -6 -6 -6 ---------- Run | Scr Mat Min Exi Min Mat Fac Was Fac Fac Was Fac Ext Cet Machines Disabled 22 | . 1 . . . 5 6 . 5 1 . 2 2 . Max in Single Turn 3 | . 1 . . . 3 2 . 2 1 . 1 1 . Garrison Access 5 | . . . . . . 2 . 1 . . 2 . . Machines Sabotaged . | . . . . . . . . . . . . . . Garrisons Compromised 1 | . . . . . . . . . . . 1 . . Overloaded Fab Kills . | . . . . . . . . . . . . . . Hacking | -11 -10 -10 -10 -9 -8 -7 -7 -7 -6 -6 -6 -6 -6 --------- Run | Scr Mat Min Exi Min Mat Fac Was Fac Fac Was Fac Ext Cet Machines Accessed 102 | . 4 . 2 . 7 22 . 27 11 . 15 11 3 Terminals 63 | . 4 . . . 5 12 . 15 8 . 5 11 3 Fabricators 14 | . . . . . . 3 . 6 2 . 3 . . Repair Stations 8 | . . . . . 2 2 . 2 . . 2 . . Recycling Units 5 | . . . . . . 2 . 1 . . 2 . . Scanalyzers 3 | . . . . . . 1 . 1 . . 1 . . Garrison Access 7 | . . . . . . 2 . 2 1 . 2 . . Total Hacks 275 | . 12 . 5 . 24 56 . 80 28 . 41 17 12 Successful 167 | . 5 . 5 . 12 29 . 51 20 . 31 11 3 Failed 107 | . 7 . . . 11 27 . 29 8 . 10 6 9 Catastrophic 15 | . 2 . . . . 7 . 1 1 . . 1 3 Database Lockouts 1 | . . . . . 1 . . . . . . . . Manual 118 | . 12 . 1 . 14 22 . 35 16 . 12 5 1 Terminals 170 | . 12 . . . 17 34 . 43 21 . 14 17 12 Fabricators 39 | . . . . . . 11 . 19 3 . 6 . . Repair Stations 20 | . . . . . 7 2 . 4 . . 7 . . Recycling Units 12 | . . . . . . 3 . 4 . . 5 . . Scanalyzers 9 | . . . . . . 2 . 4 . . 3 . . Garrison Access 20 | . . . . . . 4 . 6 4 . 6 . . Terminal Hacks 72 | . 2 . 5 . 5 9 . 22 10 . 5 11 3 Record 6 | . . . 4 . . . . . . . . . 2 Part Schematic 16 | . 1 . . . 1 4 . 6 3 . 1 . . Robot Schematic 7 | . . . . . . 3 . 3 1 . . . . Robot Analysis 2 | . . . . . 1 . . 1 . . . . . Prototype ID Bank 1 | . . . . . . . . 1 . . . . . Open Door 11 | . . . . . . . . . 1 . . 9 1 Level Access Points 2 | . . . . . . . . 1 . . 1 . . Branch Access Points 2 | . . . . . 1 . . . . . 1 . . Machine Index 2 | . . . . . . . . . 1 . 1 . . Terminal Index 2 | . . . . . 1 . . 1 . . . . . Alert Level 5 | . . . . . . 1 . 1 2 . 1 . . Unreport Threat 8 | . . . . . 1 1 . 2 2 . . 2 . Locate Traps 1 | . . . . . . . . 1 . . . . . Reprogram Traps 1 | . . . . . . . . 1 . . . . . Recall Extermination 1 | . . . . . . . . 1 . . . . . Recall Reinforcements 2 | . 1 . . . . . . 1 . . . . . Hauler Manifests 1 | . . . . . . . . 1 . . . . . Zone Layout 1 | . . . . . . . . 1 . . . . . EX-Prototype ID Bank 1 | . . . 1 . . . . . . . . . . Fabricator Hacks 26 | . . . . . . 5 . 12 3 . 6 . . Network Status 1 | . . . . . . . . 1 . . . . . Load Schematic 11 | . . . . . . 2 . 5 1 . 3 . . Build 14 | . . . . . . 3 . 6 2 . 3 . . Repair Station Hacks 8 | . . . . . 1 2 . 1 . . 4 . . Scan Component 1 | . . . . . . . . . . . 1 . . Repair 1 | . . . . . . . . . . . 1 . . Refit 6 | . . . . . 1 2 . 1 . . 2 . . Recycling Unit Hacks 1 | . . . . . . . . . . . 1 . . Report Inventory 1 | . . . . . . . . . . . 1 . . Scanalyzer 7 | . . . . . . 2 . 2 . . 3 . . Insert Component 3 | . . . . . . 1 . 1 . . 1 . . Analyze 4 | . . . . . . 1 . 1 . . 2 . . Garrison Access Hacks 5 | . . . . . . 2 . . . . 3 . . Unlock Access 1 | . . . . . . . . . . . 1 . . Seal Access 4 | . . . . . . 2 . . . . 2 . . Unauthorized Hacks 48 | . 3 . . . 6 9 . 14 7 . 9 . . Terminals 25 | . 3 . . . 6 6 . 5 3 . 2 . . Track 2 | . . . . . 1 . . 1 . . . . . Assimilate 7 | . . . . . 1 3 . 1 1 . 1 . . Botnet 13 | . 2 . . . 2 3 . 3 2 . 1 . . Detonate 1 | . . . . . 1 . . . . . . . . Operators 2 | . 1 . . . 1 . . . . . . . . Fabricators . | . . . . . . . . . . . . . . Repair Stations 1 | . . . . . . . . 1 . . . . . Mechanics 1 | . . . . . . . . 1 . . . . . Recycling Units 8 | . . . . . . 2 . 2 . . 4 . . Monitor 1 | . . . . . . 1 . . . . . . . Reject 2 | . . . . . . . . 1 . . 1 . . Recyclers 1 | . . . . . . . . . . . 1 . . Mask 4 | . . . . . . 1 . 1 . . 2 . . Scanalyzers . | . . . . . . . . . . . . . . Garrison Access 14 | . . . . . . 1 . 6 4 . 3 . . Broadcast 4 | . . . . . . . . 2 1 . 1 . . Redirect 4 | . . . . . . . . 2 1 . 1 . . Reprogram 1 | . . . . . . . . 1 . . . . . Intercept 1 | . . . . . . . . . 1 . . . . Watchers 4 | . . . . . . 1 . 1 1 . 1 . . Data Cores Recovered 1 | . 1 . . . . . . . . . . . . Used . | . . . . . . . . . . . . . . Hacking Detections 85 | . 4 . . . 5 19 . 26 9 . 14 5 3 Full Trace Events 30 | . 1 . . . . 8 . 9 2 . 7 1 2 Feedback Events 4 | . . . . . . 1 . 1 . . 2 . . Corruption 2 | . . . . . . . . 1 . . 1 . . Hackware Fried 2 | . . . . . . 1 . . . . 1 . . Feedback Blocked . | . . . . . . . . . . . . . . Robot Schematics Acquired 7 | . . . . . . 3 . 3 1 . . . . Robots Built 13 | . . . . . . 1 . 5 1 . 6 . . Authchips . | . . . . . . . . . . . . . . Time 764 | . . . . . . 40 . 241 81 . 402 . . Total Robot Build Rating 43 | . . . . . . 1 . 17 1 . 24 . . Part Schematics Acquired 19 | . 1 . . . 1 5 . 7 3 . 2 . . Parts Built 6 | . . . . . . 3 . 2 1 . . . . Authchips . | . . . . . . . . . . . . . . Time 219 | . . . . . . 71 . 72 76 . . . . Total Part Build Rating 26 | . . . . . . 15 . 6 5 . . . . Parts Repaired 1 | . . . . . . . . . . . 1 . . Time 35 | . . . . . . . . . . . 35 . . Parts Recycled . | . . . . . . . . . . . . . . Recycled Matter . | . . . . . . . . . . . . . . Retrieved Matter . | . . . . . . . . . . . . . . Retrieved Components . | . . . . . . . . . . . . . . Parts Scanalyzed 3 | . . . . . . 1 . 1 . . 1 . . Part Schematics Acquired 3 | . . . . . . 1 . 1 . . 1 . . Parts Damaged . | . . . . . . . . . . . . . . Bothacking | -11 -10 -10 -10 -9 -8 -7 -7 -7 -6 -6 -6 -6 -6 ------------ Run | Scr Mat Min Exi Min Mat Fac Was Fac Fac Was Fac Ext Cet Used RIF Installer . | . . . . . . . . . . . . . . Robots Hacked 13 | . . . . . . 6 . 6 1 . . . . Non-combat 13 | . . . . . . 6 . 6 1 . . . . Combat . | . . . . . . . . . . . . . . Robot Hacks Applied 16 | . . . . . . 8 . 7 1 . . . . parse_system 1 | . . . . . . 1 . . . . . . . no_distress 9 | . . . . . . 4 . 5 . . . . . find_chute 4 | . . . . . . 3 . . 1 . . . . find_recycling 1 | . . . . . . . . 1 . . . . . check_alert 1 | . . . . . . . . 1 . . . . . Relay Couplers Released 2 | . . . . . . . . 2 . . . . . Machine Destruction 2 | . . . . . . . . 2 . . . . . Fabnet Peak Effective % . | . . . . . . . . . . . . . . Robots Rewired 19 | . . . . . . 4 . 1 3 5 . 6 . Allies Hacked 1 | . . . . . . . . . . . 1 . . Hacks Repelled . | . . . . . . . . . . . . . . Allies | -11 -10 -10 -10 -9 -8 -7 -7 -7 -6 -6 -6 -6 -6 -------- Run | Scr Mat Min Exi Min Mat Fac Was Fac Fac Was Fac Ext Cet Total Allies 54 | . . . . . . 7 . 10 5 5 7 20 . Largest Group 7 | . . . . . . 4 . 5 1 2 3 7 4 Highest-Rated Group 260 | . . . . . . 74 . 107 40 247 201 260 102 Highest-Rated Ally 159 | . . . . . . 26 . 37 40 141 127 159 31 Total Orders 19 | . . . . . . 6 . 10 . 2 1 . . STAY 11 | . . . . . . 5 . 4 . 1 1 . . ROAM 1 | . . . . . . 1 . . . . . . . FOLLOW 2 | . . . . . . . . 1 . 1 . . . AID 4 | . . . . . . . . 4 . . . . . DROP 1 | . . . . . . . . 1 . . . . . Ally Attacks 241 | . . . . . . 2 . 27 7 14 15 152 24 Total Damage 5361 | . . . . . . 17 . 682 96 600 405 3117 444 Kills 36 | . . . . . . . . 7 2 1 3 21 2 Allies Corrupted . | . . . . . . . . . . . . . . Allies Melted 2 | . . . . . . . . . . . 2 . . Intel | -11 -10 -10 -10 -9 -8 -7 -7 -7 -6 -6 -6 -6 -6 ------- Run | Scr Mat Min Exi Min Mat Fac Was Fac Fac Was Fac Ext Cet Robot Analysis Total 2 | . . . . . 1 . . 1 . . . . . Derelict Logs Recovered 2 | . . . . 2 . . . . . . . . . Drone Launches . | . . . . . . . . . . . . . . Drone Recoveries . | . . . . . . . . . . . . . . Exploration | -11 -10 -10 -10 -9 -8 -7 -7 -7 -6 -6 -6 -6 -6 ------------- Run | Scr Mat Min Exi Min Mat Fac Was Fac Fac Was Fac Ext Cet Turns Passed 11806 | 409 720 15 88 142 448 1405 75 1662 827 1613 2518 1542 342 Spaces Moved 15337 | 115 665 39 233 352 596 2958 135 3636 1548 1469 2513 743 335 Core 172 | 115 56 . . . . . . . . . 1 . . Treads 1496 | . . . . . . . . . . 5 733 743 15 Legs 140 | . 82 . . . . . . . . . . . 58 Wheels . | . . . . . . . . . . . . . . Hover . | . . . . . . . . . . . . . . Flight 13529 | . 527 39 233 352 596 2958 135 3636 1548 1464 1779 . 262 Fastest Speed 22 | 50 37 37 37 37 29 24 27 25 22 25 25 160 29 Average Speed 44 | 222 74 37 37 37 32 26 27 25 23 25 68 162 56 Slowest Speed 450 | 250 250 37 37 37 37 106 27 29 26 160 450 240 320 Overloaded Moves . | . . . . . . . . . . . . . . Propulsion Burnouts . | . . . . . . . . . . . . . . Robots Hopped 103 | . 10 . . 5 4 13 . 13 4 10 44 . . Cave-ins Triggered 1 | . . . . . . 1 . . . . . . . Exploration Rate (%) 57 | 8 75 12 61 74 46 63 77 79 34 82 37 86 72 Regions Visited 13 Branch Regions 5 Pre-discovered Areas 2 | . . . 1 1 . . . . . . . . . Known Exits Taken 3 | . . . . . 1 . . 1 . . 1 . . Unknown Exits Taken 6 | 1 1 1 1 1 . . . . . . . 1 . Scrap Searched 1 | . . . . 1 . . . . . . . . . Spaces Dug 172 | 1 10 . . . 28 51 . 46 25 . 11 . . Terrain Destroyed 666 | 4 10 . . . 87 70 . 78 36 20 24 197 140 Melee 117 | . 2 . . . 16 39 . 28 21 . 11 . . Projectile 36 | 4 8 . . . . . . . 5 . 13 . 6 AOE 513 | . . . . . 71 31 . 50 10 20 . 197 134 Terrain Rammed . | . . . . . . . . . . . . . . Walls Destroyed . | . . . . . . . . . . . . . . Machines Disabled . | . . . . . . . . . . . . . . Actions | -11 -10 -10 -10 -9 -8 -7 -7 -7 -6 -6 -6 -6 -6 --------- Run | Scr Mat Min Exi Min Mat Fac Was Fac Fac Was Fac Ext Cet Total 18669 | 190 810 38 234 358 775 3413 157 4208 1907 2141 3058 950 430 Wait 1573 | 32 60 . . 11 93 271 3 379 250 90 303 64 17 Move 15132 | 114 646 38 232 341 587 2933 134 3609 1540 1453 2428 742 335 Hop 92 | . 8 . . 5 4 12 . 13 4 5 41 . . Pick Up 107 | 6 9 . . . 9 6 . 15 6 15 27 4 10 Fast Attach 83 | 5 8 . 1 . 8 8 1 8 4 1 28 4 7 Attach 79 | . 14 . . 1 6 12 1 6 4 5 17 3 10 Detach 45 | . 12 . . . 4 9 1 4 . . 13 1 1 Swap 77 | 1 4 . . . 5 13 1 11 13 . 12 13 4 Drop 111 | . 14 . 1 . 10 9 1 14 7 9 36 3 7 Fire 1073 | 32 31 . . . 23 80 15 76 45 563 102 67 39 Melee 189 | . 4 . . . 26 60 . 46 34 . 19 . . Ram . | . . . . . . . . . . . . . . Kick . | . . . . . . . . . . . . . . Crush 17 | . . . . . . . . . . . 14 3 . Escape Stasis 18 | . . . . . . . . . . . 18 . . Rewire 46 | . . . . . . . . . . . . 46 . Trap 27 | . . . . . . . . 27 . . . . . Miscellaneous . | . . . . . . . . . . . . . . Route ------- -11/Scrapyard -10/Materials (discovered 3 exits: [*Mat x2] / [*Min]) -10/Mines -10/Exiles -9/Mines -8/Materials (discovered 3 exits: *Fac / *Sto x2) -7/Factory (discovered 2 exits: *Fac / [*Low]) -7/Waste -7/Factory (discovered 4 exits: *Fac x4) -6/Factory -6/Waste -6/Factory (discovered 8 exits: *Fac x4 / *Low x2 / *Ext x2) -6/Extension (discovered 3 exits: *Fac x2 / *Cet) -6/Cetus (discovered 1 exit: *Fac) History --------- Turn | Location | Event 15 | -11/Scrapyard | Discovered new exit (range 15) 410 | -11/Scrapyard | Entered Materials 411 | -10/Materials | Build established: Mutant 864 | -10/Materials | Discovered new exit (range 4) 877 | -10/Materials | Discovered new exit (range 16) 1047 | -10/Materials | Discovered new exit (range 16) 1130 | -10/Materials | Entered Mines 1143 | -10/Mines | Deemed a non-threat by the Exiles lab entrance 1143 | -10/Mines | Discovered new exit (range 5) 1145 | -10/Mines | Entered Exiles 1155 | -10/Exiles | Met 8R-AWN 1161 | -10/Exiles | Met EX-HEX 1172 | -10/Exiles | Met EX-BIN 1178 | -10/Exiles | Aligned with FarCom system 1179 | -10/Exiles | Given EX-Vault access code 1188 | -10/Exiles | Opened EX-Vault 1190 | -10/Exiles | Found 0b10 Alert Chip 1199 | -10/Exiles | Warned to stay clear of 0b10 Research branches 1210 | -10/Exiles | Met EX-DEC 1213 | -10/Exiles | Learned location of Zion (-7) 1229 | -10/Exiles | Discovered new exit (range 14) 1233 | -10/Exiles | Left Exiles lab with 0b10 Alert Chip 1233 | -10/Exiles | Entered Mines 1234 | -9/Mines | Learned location of Storage (-8) 1274 | -9/Mines | Learned Materials stockpile data 1368 | -9/Mines | Core integrity fell below 50% 1368 | -9/Mines | Discovered new exit (range 13) 1374 | -9/Mines | Learned 4 Materials zone layouts 1375 | -9/Mines | Entered Materials 1375 | -8/Materials | Evolved 4 slots: Propulsion x2, Utility x2 1376 | -8/Materials | Identified exit to Storage 1376 | -8/Materials | Identified exit to Factory 1750 | -8/Materials | Central database locked down 1823 | -8/Materials | Entered Factory 1823 | -7/Factory | Evolved 2 slots: Power x1, Propulsion x1 1892 | -7/Factory | Build established: Scavenger-Scout 1938 | -7/Factory | Crushed by falling debris 1938 | -7/Factory | System corruption reached 10% 1969 | -7/Factory | Lost 4 parts (1n1u2w) 2185 | -7/Factory | Garrison activated, responded to threat 2221 | -7/Factory | Discovered new exit (range 9) 2288 | -7/Factory | Discovered new exit (range 11) 2295 | -7/Factory | Fabricated K-01 Serf? 2436 | -7/Factory | Fabricated Hacking Suite (x1) 2623 | -7/Factory | Search patrols dispatched 2684 | -7/Factory | Hacking Suite fried by hacking feedback 2719 | -7/Factory | Fabricated Imp. Corruption Screen? 2990 | -7/Factory | Build established: Sprinter 3228 | -7/Factory | Manually triggered Chute Trap 3228 | -7/Factory | Sucked down chute 3228 | -7/Factory | Entered Waste 3234 | -7/Waste | Spotted C-40 Crusher 3235 | -7/Waste | Spotted C-40 Crusher 3236 | -7/Waste | Spotted C-40 Crusher 3238 | -7/Waste | Spotted C-40 Crusher 3238 | -7/Waste | Spotted C-40 Crusher 3240 | -7/Waste | Spotted C-40 Crusher 3243 | -7/Waste | EMP discharged 3254 | -7/Waste | Discovered new exit (range 10) 3303 | -7/Waste | Entered Factory 3439 | -7/Factory | Fabricated M-28 Smith? 3685 | -7/Factory | Fabricated M-28 Smith (x1) 3880 | -7/Factory | Build established: Hacker-Sprinter 4133 | -7/Factory | Identified exit to Factory 4330 | -7/Factory | Fabricated Hacking Suite (x1) 4527 | -7/Factory | Fabricated Hacking Suite (x1) 4727 | -7/Factory | Lost 3 parts (1p1n1w) 4816 | -7/Factory | Fabricated M-28 Smith? 4836 | -7/Factory | Fabricated P-60 Hacker? 4965 | -7/Factory | Entered another Factory area 4965 | -6/Factory | Evolved 2 slots: Propulsion x1, Utility x1 5141 | -6/Factory | Spotted B-75 Beast 5207 | -6/Factory | Fabricated Biomechanical Wings? 5228 | -6/Factory | Discovered new exit (range 5) 5232 | -6/Factory | Fabricated T-07 Excavator? 5792 | -6/Factory | Manually triggered Chute Trap 5792 | -6/Factory | Sucked down chute 5792 | -6/Factory | Entered Waste 5820 | -6/Waste | 1 allies followed down the chute 5823 | -6/Waste | Spotted C-40 Crusher 5871 | -6/Waste | Spotted C-40 Crusher 5888 | -6/Waste | Spotted C-40 Crusher 5900 | -6/Waste | Spotted C-40 Crusher 5910 | -6/Waste | Spotted C-40 Crusher 5912 | -6/Waste | Spotted C-40 Crusher 5927 | -6/Waste | Discovered new exit (range 16) 5940 | -6/Waste | Rewired C-40 Crusher 6214 | -6/Waste | Rewired C-40 Crusher 6475 | -6/Waste | Rewired C-40 Crusher 6863 | -6/Waste | Rewired C-40 Crusher 7319 | -6/Waste | Rewired C-40 Crusher 7405 | -6/Waste | Entered Factory 7405 | -6/Factory | Accompanied by 1 ally 7419 | -6/Factory | Discovered new exit (range 4) 7693 | -6/Factory | Discovered new exit (range 9) 7705 | -6/Factory | Identified exit to Factory 7728 | -6/Factory | Identified exit to Garrison 8088 | -6/Factory | Repaired Cld. Particle Cannon? 8135 | -6/Factory | Hacking Suite fried by hacking feedback 8166 | -6/Factory | Lost 4 parts (1p2n1u) 8188 | -6/Factory | Spotted B-75 Beast 8219 | -6/Factory | Fabricated P-60 Hacker? 8234 | -6/Factory | Lost 6 parts (2p3n1u) 8249 | -6/Factory | Discovered new exit (range 14) 8296 | -6/Factory | Identified exit to Lower Caves 8296 | -6/Factory | Identified exit to Extension 8370 | -6/Factory | Fabricated P-60 Hacker? 8386 | -6/Factory | Fabricated P-60 Hacker? 8411 | -6/Factory | System corruption reached 10% 8733 | -6/Factory | Build established: Scavenger-Mutant 9641 | -6/Factory | Cargo convoy interrupted 9778 | -6/Factory | Core integrity fell below 50% 9923 | -6/Factory | Entered Extension 9966 | -6/Extension | Rescued a captive Derelict 10087 | -6/Extension | Rescued a captive Derelict 10088 | -6/Extension | Rescued a captive Derelict 10127 | -6/Extension | Rescued a captive Derelict 10128 | -6/Extension | Rescued a captive Derelict 10187 | -6/Extension | Rescued a captive Derelict 10188 | -6/Extension | Rescued a captive Derelict 10222 | -6/Extension | Rescued a captive Derelict 10223 | -6/Extension | Rescued a captive Derelict 10263 | -6/Extension | Rescued A7 10668 | -6/Extension | Spotted B-75 Beast 10683 | -6/Extension | Allies destroyed B-75 Beast 10701 | -6/Extension | Spotted B-75 Beast 10727 | -6/Extension | Allies destroyed B-75 Beast 10748 | -6/Extension | Disrupted transfer network 10763 | -6/Extension | Discovered exit to Factory (range 3) 10959 | -6/Extension | Extracted ID and sensor layout for unrecognized location from A7's data core 10973 | -6/Extension | First assault squad dispatched 11074 | -6/Extension | Rescued a captive Derelict 11076 | -6/Extension | Rescued a captive Derelict 11373 | -6/Extension | Rescued a captive Derelict 11373 | -6/Extension | Rescued a captive Derelict 11445 | -6/Extension | Discovered exit to Factory (range 10) 11447 | -6/Extension | Discovered new exit (range 6) 11465 | -6/Extension | Entered Cetus 11465 | -6/Cetus | Accompanied by 4 allies 11487 | -6/Cetus | Spotted Cetus Guard 11487 | -6/Cetus | Spotted Cetus Guard 11490 | -6/Cetus | Spotted Cetus Guard 11501 | -6/Cetus | Core integrity fell below 20% 11509 | -6/Cetus | Destroyed Cetus Guard 11516 | -6/Cetus | Allies destroyed Cetus Guard 11520 | -6/Cetus | Destroyed Cetus Guard 11524 | -6/Cetus | Spotted Cetus Guard 11525 | -6/Cetus | Allies destroyed Cetus Guard 11554 | -6/Cetus | Discovered exit to Factory (range 15) 11563 | -6/Cetus | Lost 9 parts (1p3n2u3w) 11807 | -6/Cetus | Destroyed by H-66 Slayer with Gauss Rifle Last Messages --------------- 11764_ System corrupted: Component data lost. 11766_ Discarded Hacking Suite. 11767_ S-27 Virus destroyed. 11769_ Lyr. Medium Armor Plating destroyed. 11770_ S-27 Virus suffers critical hit (Destroy). 11770_ Destroyed Lgt. Nuclear Core. 11770_ S-27 Virus destroyed. 11778_ Acquired Unknown Engine. 11779_ System corrupted: FCS attempts to trigger Hvy. Machine Gun. 11779_ System corrupted: Hvy. Machine Gun misfires. 11779_ Dropped Unknown Engine. 11783_ Acquired Hrd. Light Armor Plating. 11785_ Acquired 8 matter. 11788_ Acquired Hrd. Light Armor Plating. 11797_ G4BIHM0>J WSDPM1MCY9NK:<:P 11799_ Acquired 21 matter. 11805_ Acquired 18 matter. 11807_ C-30 ARC bursts open, deploying its payload. 11807_ H-66 Slayer unfolds itself. 11807_ Slug penetrates Wall. Map ----- +----------------------------------------------------+ | ?????????????????# #???????????????????????????? | | ?????????????????# #???????????????????????????? | | ?????????????????# #???????????????????????????? | | ?????????????????# #???????????????????????????? | | ?????????????????# #???????????????????????????? | | ?????????????????# [ #???????????????????????????? | | ?????????????????# #???????????????????????????? | | ?????????????????# #???????????????????????????? | | ?????????????????# #???????????????????????????? | | ?????????????????# #???????????????????????????? | | ?????????????????# #???????????????????????????? | | ?????????????????# #???????????????????????????? | | ?????????????????# #???????????????????????????? | | ?????????????????# #?##????????????????????????? | | ???????????????### ## #????????????????????????? | | ???????????????# #????????????" """ ?????## | | ???????????????# #???????? " """"""" ???#" | | ???????????????## [ # ####????#"""""""""""""""#" | | ???????????????# # # ##???#""""" """ """""#" | | ??????????????## #### ##??#""""""" """""""#" | | ?????????????## # ! ## # ####""" " " """#T | | ??????######## ## * ## # # # ##" """ """ "#" | | #######""""#; ! #####= ## | | * [% ; %h | | != ==*= [% ; | | @[% ; | | ############ ## ### * ##" | | ???????????# ### # #### ##" "" """""""" | | ???????????###?##### #### ## #########++########## | | ???????????????????## ## # ##" " ""# | | ????????????????????## # ### #####" """# " | | ?????????????????????# ##?#" " ""# """" | | ?????????????????????########???###" """# " | | ????????????????????????????????#" "### | | ????????????????????????????????#" """"#" | | ????????????????????????????????#" T"""#""""" | | ????????????????????????????????#" """"#" " | | ????????????????????????????????### "###????? | | ????????????????????????????????# """"#????? | | ????????????????????????????????#" " T"""#????? | | ????????????????????????????????#" """"#????? | | ????????????????????????????????#" " " #"###????? | | ????????????????????????????????# #""??????? | | ????????????????????????????????#""" """#"""?????? | | ????????????????????????????????#########????????? | | ?????????????????????????????????????????????????? | | ?????????????????????????????????????????????????? | | ?????????????????????????????????????????????????? | | ?????????????????????????????????????????????????? | | ?????????????????????????????????????????????????? | +----------------------------------------------------+ Best States ------------- Heat Dissipation 83 Energy Generation 34 Energy Capacity 535 Matter Stores 300 Matter Capacity 300 Sight Range 20 Terrain Scan Range 16 Terrain Scan Density 10 Corruption Block 30 Armor Coverage 300 Utility Shielding 66 Evasion (%) 65 Recoil Reduction 6 Offensive Hacking 40 Defensive Hacking 12 Item Schematics ----------------- Lrg. Storage Unit | -10/Materials | Hacked Hacking Suite | -8/Materials | Hacked Arc Projector | -7/Factory | Scanalyzed Xenon Bombardment Thruster | -7/Factory | Hacked System Restoration Module | -7/Factory | Hacked Cld. Plasma Rifle | -7/Factory | Hacked Lgt. Fission Core | -7/Factory | Hacked Imp. Dynamic Insulation System | -7/Factory | Hacked EM Disruption Field | -7/Factory | Hacked Imp. Cooling System | -7/Factory | Scanalyzed System Shield | -7/Factory | Hacked Imp. Datajack | -7/Factory | Hacked Biomechanical Wings | -7/Factory | Hacked Nuclear Pulse Thruster | -7/Factory | Hacked Quantum Capacitor | -6/Factory | Hacked Enh. Gauss Cannon | -6/Factory | Hacked Hvy. Gauss Cannon | -6/Factory | Hacked Hvy. Treads | -6/Factory | Scanalyzed Mic. Fission Core | -6/Factory | Hacked Robot Schematics ------------------ M-13 Machinist | -7/Factory | Hacked A-02 Transporter | -7/Factory | Hacked M-28 Smith | -7/Factory | Hacked P-60 Hacker | -7/Factory | Hacked K-01 Serf | -7/Factory | Hacked T-07 Excavator | -7/Factory | Hacked A-15 Conveyor | -6/Factory | Hacked Fabricated ------------ K-01 Serf | x1 | -7/Factory | Preloaded Hacking Suite | x1 | -7/Factory Imp. Corruption Screen | x2 | -7/Factory | Preloaded M-28 Smith | x1 | -7/Factory M-28 Smith | x1 | -7/Factory Hacking Suite | x1 | -7/Factory Hacking Suite | x1 | -7/Factory M-28 Smith | x1 | -7/Factory | Preloaded P-60 Hacker | x2 | -7/Factory Biomechanical Wings | x1 | -6/Factory T-07 Excavator | x1 | -6/Factory | Preloaded P-60 Hacker | x2 | -6/Factory P-60 Hacker | x2 | -6/Factory P-60 Hacker | x2 | -6/Factory Alien Tech Used ----------------- None Achievements -------------- Collateral Damage Challenges ------------ None Game ------ Seed FusionSupersonicMultirail Manual? 0 Play Time 03:42:23 Cumulative 224.6 hours Start 2022.10.05 @ 22:17:43 End 2022.10.06 @ 02:05:27 Sessions 1 Manual Loads 0 Difficulty Rogue Special Mode None Game No. 162 Rogue 159 Adventurer 3 Explorer 0 Win Type - Total 3 Types 2/0/1/0/0/0/0/0/0 Lore% 68 Gallery% 69 Achievement% 60 Wizard Run 0 Options --------- ASCII 0 Keyboard 0 Movement Numpad Keybinds 0 Fullscreen 1 Font 18/SmallcapsGlow Map View 76x50 Tactical HUD 1 Map Filters NONE Filters NONE Steam 1 RUN: d9a0713b-8f7b-4d2d-8f5f-99f9691c94c5